[Event "*** Titled Tuesday Blitz"]
[Site "Chess.com"]
[Date "2019.01.01"]
[Round "5"]
[White "evgenyermolaev"]
[Black "ahmadzada13"]
[Result "1-0"]
[WhiteElo "2492"]
[BlackElo "2802"]
[TimeControl "180+2"]
[EndTime "14:10:23 PST"]
[Termination "evgenyermolaev won by resignation"]

1. e4 {[%clk 0:03:01.7]} 1... e5 {[%clk 0:03:00.5]} 2. Nf3 {[%clk 0:03:02.3]}
2... Nc6 {[%clk 0:02:57.4]} 3. Bc4 {[%clk 0:03:03.6]} 3... Bc5 {[%clk
0:02:56.7]} 4. d3 {[%clk 0:03:03.4]} 4... Nf6 {[%clk 0:02:52.8]} 5. Nbd2 {[%clk
0:03:03.6]} 5... d6 {[%clk 0:02:50.8]} 6. Bb3 {[%clk 0:03:03.8]} 6... O-O {[%clk
0:02:51.8]} 7. c3 {[%clk 0:03:03.1]} 7... Nh5 {[%clk 0:02:49.5]} 8. Nf1 {[%clk
0:02:59.5]} 8... Kh8 {[%clk 0:02:39.8]} 9. Nxe5 {[%clk 0:02:44]} 9... Nxe5
{[%clk 0:02:37.2]} 10. d4 {[%clk 0:02:44.8]} 10... Bg4 {[%clk 0:02:33.2]} 11. f3
{[%clk 0:02:10.8]} 11... Qh4+ {[%clk 0:02:21]} 12. Ke2 {[%clk 0:01:55.7]} 12...
Bh3 {[%clk 0:02:02.6]} 13. g3 {[%clk 0:00:38.3]} 13... Qf6 {[%clk 0:01:59.6]}
14. dxe5 {[%clk 0:00:35.3]} 14... Qxe5 {[%clk 0:01:57.9]} 15. Ne3 {[%clk
0:00:28]} 15... f5 {[%clk 0:01:47.6]} 16. Qd5 {[%clk 0:00:20.9]} 16... Qe7
{[%clk 0:01:31]} 17. Qe6 {[%clk 0:00:14.1]} 17... Qd8 {[%clk 0:01:24.5]} 18. Bc2
{[%clk 0:00:05.4]} 18... f4 {[%clk 0:01:21.5]} 19. Qxh3 {[%clk 0:00:06.1]} 19...
fxe3 {[%clk 0:01:15]} 20. Qxh5 {[%clk 0:00:06.7]} 20... g6 {[%clk 0:01:14.7]}
21. Qd5 {[%clk 0:00:05.6]} 21... c6 {[%clk 0:01:10.9]} 22. Qd3 {[%clk
0:00:06.2]} 22... Qf6 {[%clk 0:01:10.6]} 23. Rf1 {[%clk 0:00:07.8]} 23... d5
{[%clk 0:01:03.3]} 24. Bxe3 {[%clk 0:00:09.3]} 24... Bxe3 {[%clk 0:00:56.9]} 25.
Qxe3 {[%clk 0:00:10.9]} 25... Kg8 {[%clk 0:00:58.2]} 26. Qd4 {[%clk 0:00:09.9]}
26... Qd6 {[%clk 0:00:53.3]} 27. Rae1 {[%clk 0:00:08.8]} 27... b5 {[%clk
0:00:50.5]} 28. Kd2 {[%clk 0:00:08.7]} 28... a5 {[%clk 0:00:48.6]} 29. Kc1
{[%clk 0:00:09.7]} 29... Rad8 {[%clk 0:00:44.2]} 30. exd5 {[%clk 0:00:09]} 30...
cxd5 {[%clk 0:00:38.2]} 31. Re5 {[%clk 0:00:07.1]} 31... a4 {[%clk 0:00:35.1]}
32. Rd1 {[%clk 0:00:07.3]} 32... Qc6 {[%clk 0:00:23]} 33. Rxd5 {[%clk
0:00:08.4]} 33... Rde8 {[%clk 0:00:20.4]} 34. Rd7 {[%clk 0:00:09.8]} 34... Rf7
{[%clk 0:00:18.1]} 35. Rxf7 {[%clk 0:00:09.4]} 35... Kxf7 {[%clk 0:00:20]} 36.
Qd5+ {[%clk 0:00:09.9]} 1-0

[Event "*** Titled Tuesday Blitz"]
[Site "Chess.com"]
[Date "2019.01.01"]
[Round "5"]
[White "Blagorod"]
[Black "BillCoe"]
[Result "1-0"]
[WhiteElo "2099"]
[BlackElo "1985"]
[TimeControl "180+2"]
[EndTime "14:10:23 PST"]
[Termination "Blagorod won on time"]

1. e4 {[%clk 0:03:01.9]} 1... c5 {[%clk 0:03:00.1]} 2. Nc3 {[%clk 0:03:02.1]}
2... e6 {[%clk 0:03:01.1]} 3. g3 {[%clk 0:03:01.6]} 3... Nc6 {[%clk 0:03:02.3]}
4. Bg2 {[%clk 0:03:02.3]} 4... g6 {[%clk 0:03:03.6]} 5. d3 {[%clk 0:03:03.5]}
5... Bg7 {[%clk 0:03:04.7]} 6. Be3 {[%clk 0:03:04.5]} 6... b6 {[%clk 0:03:04.8]}
7. f4 {[%clk 0:03:03.3]} 7... Nge7 {[%clk 0:03:05.4]} 8. Nf3 {[%clk 0:02:51.5]}
8... d5 {[%clk 0:03:03.6]} 9. exd5 {[%clk 0:02:49.9]} 9... Nxd5 {[%clk
0:02:53.7]} 10. Nxd5 {[%clk 0:02:49.9]} 10... exd5 {[%clk 0:02:53.4]} 11. c3
{[%clk 0:02:34.9]} 11... O-O {[%clk 0:02:52.2]} 12. O-O {[%clk 0:02:35.1]} 12...
Be6 {[%clk 0:02:42.8]} 13. d4 {[%clk 0:02:29]} 13... cxd4 {[%clk 0:02:41.2]} 14.
Nxd4 {[%clk 0:02:26.2]} 14... Nxd4 {[%clk 0:02:30]} 15. Bxd4 {[%clk 0:02:26.9]}
15... Bxd4+ {[%clk 0:02:30.6]} 16. Qxd4 {[%clk 0:02:27.1]} 16... Qd7 {[%clk
0:02:22.2]} 17. Rad1 {[%clk 0:02:22.2]} 17... Rfd8 {[%clk 0:02:22.1]} 18. c4
{[%clk 0:02:12.6]} 18... Rac8 {[%clk 0:02:07.1]} 19. cxd5 {[%clk 0:02:12.8]}
19... Bg4 {[%clk 0:02:00.6]} 20. Rd2 {[%clk 0:02:06]} 20... Qb5 {[%clk
0:01:57.7]} 21. h3 {[%clk 0:01:58.7]} 21... Rc4 {[%clk 0:01:50.4]} 22. Qf6
{[%clk 0:01:50]} 22... Qc5+ {[%clk 0:01:11]} 23. Kh2 {[%clk 0:01:41.2]} 23...
Rd6 {[%clk 0:01:09.9]} 24. Qe5 {[%clk 0:01:21.9]} 24... Bf5 {[%clk 0:00:53.5]}
25. g4 {[%clk 0:01:16.8]} 25... Bc2 {[%clk 0:00:53.5]} 26. Rff2 {[%clk
0:01:02.2]} 26... Bb1 {[%clk 0:00:52.2]} 27. b3 {[%clk 0:00:58.8]} 27... Rc1
{[%clk 0:00:52.3]} 28. f5 {[%clk 0:00:47.7]} 28... gxf5 {[%clk 0:00:48.1]} 29.
gxf5 {[%clk 0:00:41.7]} 29... f6 {[%clk 0:00:33.2]} 30. Qe8+ {[%clk 0:00:33.1]}
30... Kg7 {[%clk 0:00:34.5]} 31. Qe7+ {[%clk 0:00:33.5]} 31... Kg8 {[%clk
0:00:33.5]} 32. Rf4 {[%clk 0:00:31.6]} 32... Qg1+ {[%clk 0:00:28.6]} 33. Kg3
{[%clk 0:00:31.2]} 33... Rc3+ {[%clk 0:00:27.2]} 34. Kh4 {[%clk 0:00:22.2]}
34... Bxf5 {[%clk 0:00:09.2]} 35. Rxf5 {[%clk 0:00:18.7]} 1-0

[Event "*** Titled Tuesday Blitz"]
[Site "Chess.com"]
[Date "2019.01.01"]
[Round "5"]
[White "Pakarma"]
[Black "TheBigBadChessDad"]
[Result "1-0"]
[WhiteElo "2457"]
[BlackElo "2284"]
[TimeControl "180+2"]
[EndTime "14:10:24 PST"]
[Termination "Pakarma won by checkmate"]

1. e4 {[%clk 0:03:01.9]} 1... e5 {[%clk 0:03:00.4]} 2. Nc3 {[%clk 0:03:02.7]}
2... Nf6 {[%clk 0:03:01.3]} 3. Bc4 {[%clk 0:03:04.4]} 3... Nc6 {[%clk
0:02:59.4]} 4. d3 {[%clk 0:03:05.7]} 4... Bb4 {[%clk 0:02:53.6]} 5. Bg5 {[%clk
0:03:05.6]} 5... h6 {[%clk 0:02:52.5]} 6. Bxf6 {[%clk 0:03:05.2]} 6... Qxf6
{[%clk 0:02:52.5]} 7. Ne2 {[%clk 0:03:06.2]} 7... Nd4 {[%clk 0:02:50.7]} 8. O-O
{[%clk 0:03:06.5]} 8... Nxe2+ {[%clk 0:02:50.9]} 9. Nxe2 {[%clk 0:03:07.5]} 9...
Bc5 {[%clk 0:02:42.4]} 10. Kh1 {[%clk 0:03:08.2]} 10... g5 {[%clk 0:02:42.6]}
11. c3 {[%clk 0:03:07.5]} 11... d6 {[%clk 0:02:39.9]} 12. b4 {[%clk 0:02:58.1]}
12... Bb6 {[%clk 0:02:40.8]} 13. a4 {[%clk 0:02:58.2]} 13... a5 {[%clk
0:02:41.8]} 14. b5 {[%clk 0:02:52.7]} 14... h5 {[%clk 0:02:38.2]} 15. d4 {[%clk
0:02:52.7]} 15... h4 {[%clk 0:02:32.2]} 16. Qd3 {[%clk 0:02:48.4]} 16... g4
{[%clk 0:02:23.4]} 17. f4 {[%clk 0:02:48]} 17... exd4 {[%clk 0:02:16.5]} 18.
cxd4 {[%clk 0:02:43.5]} 18... h3 {[%clk 0:02:01.9]} 19. g3 {[%clk 0:02:34.3]}
19... Be6 {[%clk 0:01:41.3]} 20. f5 {[%clk 0:02:00.8]} 20... Bxc4 {[%clk
0:01:37.9]} 21. Qxc4 {[%clk 0:02:02.7]} 21... O-O-O {[%clk 0:01:32.8]} 22. Qd5
{[%clk 0:01:54.8]} 22... Rde8 {[%clk 0:01:23.3]} 23. Rf4 {[%clk 0:01:47.2]}
23... Rhg8 {[%clk 0:01:23.8]} 24. Rc1 {[%clk 0:01:43.1]} 24... Kb8 {[%clk
0:01:20.1]} 25. Kg1 {[%clk 0:01:31.6]} 25... Re5 {[%clk 0:01:14.2]} 26. Qb3
{[%clk 0:00:55]} 26... d5 {[%clk 0:01:13.5]} 27. Kf1 {[%clk 0:00:56.1]} 27...
Rxe4 {[%clk 0:01:12.1]} 28. Qxd5 {[%clk 0:00:46.9]} 28... Rxf4+ {[%clk
0:01:13.2]} 29. Nxf4 {[%clk 0:00:47.3]} 29... Qxd4 {[%clk 0:00:31]} 30. Qxd4
{[%clk 0:00:46.5]} 30... Bxd4 {[%clk 0:00:32.9]} 31. Rc4 {[%clk 0:00:33.4]}
31... Bb6 {[%clk 0:00:31.4]} 32. Nd5 {[%clk 0:00:31]} 32... Rg5 {[%clk
0:00:21.6]} 33. Ne7 {[%clk 0:00:19.4]} 33... f6 {[%clk 0:00:13.2]} 34. Ke2
{[%clk 0:00:19.2]} 34... Bg1 {[%clk 0:00:13]} 35. Kf1 {[%clk 0:00:15.5]} 35...
Bxh2 {[%clk 0:00:13.3]} 36. Kf2 {[%clk 0:00:17]} 36... Rg7 {[%clk 0:00:12.5]}
37. Re4 {[%clk 0:00:18.1]} 37... b6 {[%clk 0:00:10.5]} 38. Nc6+ {[%clk 0:00:16]}
38... Kc8 {[%clk 0:00:11.6]} 39. Re8+ {[%clk 0:00:16.8]} 39... Kd7 {[%clk
0:00:12.1]} 40. Rd8# {[%clk 0:00:18]} 1-0

[Event "*** Titled Tuesday Blitz"]
[Site "Chess.com"]
[Date "2019.01.01"]
[Round "5"]
[White "Bryakin_Mikhail"]
[Black "kuli4ik"]
[Result "0-1"]
[WhiteElo "2685"]
[BlackElo "2810"]
[TimeControl "180+2"]
[EndTime "14:10:30 PST"]
[Termination "kuli4ik won by resignation"]

1. d4 {[%clk 0:03:01.9]} 1... g6 {[%clk 0:02:57.6]} 2. c4 {[%clk 0:02:52.3]}
2... Bg7 {[%clk 0:02:58.8]} 3. Nc3 {[%clk 0:02:50.7]} 3... c5 {[%clk 0:02:58.4]}
4. d5 {[%clk 0:02:51.6]} 4... Bxc3+ {[%clk 0:02:58.8]} 5. bxc3 {[%clk
0:02:53.5]} 5... f5 {[%clk 0:03:00.7]} 6. Nf3 {[%clk 0:02:50.2]} 6... Nf6 {[%clk
0:03:00.7]} 7. Bh6 {[%clk 0:02:49.8]} 7... Rg8 {[%clk 0:02:59.6]} 8. Qc2 {[%clk
0:02:39.1]} 8... Qa5 {[%clk 0:02:58.5]} 9. e3 {[%clk 0:02:38.1]} 9... d6 {[%clk
0:02:59.7]} 10. Bd3 {[%clk 0:02:38.7]} 10... Nbd7 {[%clk 0:02:59.2]} 11. O-O
{[%clk 0:02:34.1]} 11... Nb6 {[%clk 0:03:00.2]} 12. Nd2 {[%clk 0:02:29.2]} 12...
Qa4 {[%clk 0:02:59.6]} 13. Qb3 {[%clk 0:02:25.5]} 13... Bd7 {[%clk 0:02:59.7]}
14. h3 {[%clk 0:02:20.4]} 14... O-O-O {[%clk 0:02:53.4]} 15. Bc2 {[%clk
0:02:07.4]} 15... Qa6 {[%clk 0:02:53.3]} 16. a4 {[%clk 0:02:02]} 16... g5 {[%clk
0:02:49.2]} 17. h4 {[%clk 0:01:32.5]} 17... gxh4 {[%clk 0:02:47.5]} 18. Kh1
{[%clk 0:01:32.2]} 18... Rg6 {[%clk 0:02:41.4]} 19. Bf4 {[%clk 0:01:32.9]} 19...
Rdg8 {[%clk 0:02:42.9]} 20. Rg1 {[%clk 0:01:34.2]} 20... Ng4 {[%clk 0:02:33.4]}
21. Rgf1 {[%clk 0:01:26.5]} 21... Kb8 {[%clk 0:02:06.2]} 22. a5 {[%clk 0:01:24]}
22... Na8 {[%clk 0:02:04]} 23. Nf3 {[%clk 0:01:21.6]} 23... Nc7 {[%clk
0:01:47.3]} 24. Nxh4 {[%clk 0:01:14.2]} 24... Rf6 {[%clk 0:01:48.2]} 25. Nf3
{[%clk 0:01:01.5]} 25... Ka8 {[%clk 0:01:47.8]} 26. g3 {[%clk 0:01:01.4]} 26...
e5 {[%clk 0:01:44.7]} 27. dxe6 {[%clk 0:00:54.8]} 27... Bxe6 {[%clk 0:01:43.6]}
28. Bd3 {[%clk 0:00:44]} 28... Qc6 {[%clk 0:01:39.7]} 29. Kg2 {[%clk 0:00:45.1]}
29... Ne5 {[%clk 0:01:32.8]} 30. Bxe5 {[%clk 0:00:40.3]} 30... dxe5 {[%clk
0:01:34.7]} 31. e4 {[%clk 0:00:29.6]} 31... Qd6 {[%clk 0:00:50.2]} 32. Rab1
{[%clk 0:00:30.2]} 32... Bc8 {[%clk 0:00:43.4]} 33. Rfd1 {[%clk 0:00:31.2]}
33... f4 {[%clk 0:00:43.3]} 34. Nh4 {[%clk 0:00:26.8]} 34... fxg3 {[%clk
0:00:39.8]} 35. fxg3 {[%clk 0:00:27.4]} 35... Qf8 {[%clk 0:00:37.7]} 36. Rf1
{[%clk 0:00:25.6]} 36... Ne6 {[%clk 0:00:33]} 37. Nf5 {[%clk 0:00:21.9]} 37...
Nf4+ {[%clk 0:00:30.7]} 38. Rxf4 {[%clk 0:00:22.1]} 38... exf4 {[%clk 0:00:32]}
39. a6 {[%clk 0:00:21.4]} 39... Rxa6 {[%clk 0:00:27.3]} 40. e5 {[%clk
0:00:22.8]} 40... Rb6 {[%clk 0:00:26.7]} 41. Qc2 {[%clk 0:00:23.7]} 41... Rxb1
{[%clk 0:00:24.9]} 42. Qxb1 {[%clk 0:00:25.6]} 42... Bxf5 {[%clk 0:00:26.1]} 43.
Bxf5 {[%clk 0:00:26.8]} 43... Rxg3+ {[%clk 0:00:26.4]} 44. Kf2 {[%clk
0:00:28.2]} 44... Qh6 {[%clk 0:00:26.6]} 0-1

[Event "*** Titled Tuesday Blitz"]
[Site "Chess.com"]
[Date "2019.01.01"]
[Round "5"]
[White "Dr-Bassem"]
[Black "pultineviciuspaulius"]
[Result "1-0"]
[WhiteElo "2725"]
[BlackElo "2602"]
[TimeControl "180+2"]
[EndTime "14:10:33 PST"]
[Termination "Dr-Bassem won by resignation"]

1. e4 {[%clk 0:03:01.9]} 1... e5 {[%clk 0:03:01.4]} 2. Nf3 {[%clk 0:03:01.3]}
2... Nc6 {[%clk 0:03:02.7]} 3. Bc4 {[%clk 0:03:02.9]} 3... Nf6 {[%clk
0:03:02.8]} 4. d3 {[%clk 0:03:03.3]} 4... Be7 {[%clk 0:03:03.9]} 5. O-O {[%clk
0:03:03.8]} 5... O-O {[%clk 0:03:05.4]} 6. a4 {[%clk 0:03:04.2]} 6... a6 {[%clk
0:03:03.5]} 7. h3 {[%clk 0:02:53.6]} 7... d6 {[%clk 0:03:04]} 8. c3 {[%clk
0:02:48.5]} 8... h6 {[%clk 0:03:04.9]} 9. Re1 {[%clk 0:02:45.8]} 9... Nh7 {[%clk
0:03:04.8]} 10. d4 {[%clk 0:02:46.4]} 10... Ng5 {[%clk 0:03:04.8]} 11. Nbd2
{[%clk 0:01:54.8]} 11... Bf6 {[%clk 0:03:02.2]} 12. Nxg5 {[%clk 0:01:52.8]}
12... Bxg5 {[%clk 0:03:00.8]} 13. Nf3 {[%clk 0:01:53.7]} 13... Bxc1 {[%clk
0:03:00.9]} 14. Rxc1 {[%clk 0:01:55.6]} 14... Qf6 {[%clk 0:03:02]} 15. Qd3
{[%clk 0:01:46.6]} 15... Ne7 {[%clk 0:03:00.3]} 16. Kh2 {[%clk 0:01:12.9]} 16...
Ng6 {[%clk 0:02:57.1]} 17. g3 {[%clk 0:01:13.6]} 17... Bd7 {[%clk 0:02:52.3]}
18. a5 {[%clk 0:01:14.1]} 18... Rad8 {[%clk 0:02:47.8]} 19. Rcd1 {[%clk
0:01:07.5]} 19... Bc6 {[%clk 0:02:33.3]} 20. h4 {[%clk 0:00:53.2]} 20... Bd7
{[%clk 0:02:23.5]} 21. Rd2 {[%clk 0:00:42.9]} 21... Bg4 {[%clk 0:02:23.9]} 22.
Ng1 {[%clk 0:00:43]} 22... c6 {[%clk 0:02:11.2]} 23. Bb3 {[%clk 0:00:43.6]}
23... Rfe8 {[%clk 0:01:29.5]} 24. f3 {[%clk 0:00:32.1]} 24... Bc8 {[%clk
0:01:28.7]} 25. Red1 {[%clk 0:00:28.5]} 25... d5 {[%clk 0:01:10.8]} 26. h5
{[%clk 0:00:19.7]} 26... Ne7 {[%clk 0:00:43]} 27. exd5 {[%clk 0:00:19.8]} 27...
Nxd5 {[%clk 0:00:39]} 28. Re2 {[%clk 0:00:11.8]} 28... Bf5 {[%clk 0:00:24.4]}
29. Qd2 {[%clk 0:00:09]} 29... exd4 {[%clk 0:00:25.5]} 30. Qxd4 {[%clk
0:00:09.4]} 30... Qg5 {[%clk 0:00:25.1]} 31. g4 {[%clk 0:00:07.9]} 31... Ne3
{[%clk 0:00:25.1]} 32. Rxe3 {[%clk 0:00:06.8]} 32... Rxd4 {[%clk 0:00:22.7]} 33.
Rxe8+ {[%clk 0:00:07.5]} 33... Kh7 {[%clk 0:00:24.1]} 34. Rxd4 {[%clk
0:00:06.5]} 34... Qc1 {[%clk 0:00:18.4]} 35. gxf5 {[%clk 0:00:03.9]} 35... Qxb2+
{[%clk 0:00:19]} 36. Ne2 {[%clk 0:00:05.1]} 36... Qxb3 {[%clk 0:00:20.1]} 37.
Rdd8 {[%clk 0:00:06.4]} 37... g6 {[%clk 0:00:13.8]} 38. fxg6+ {[%clk 0:00:07.5]}
38... fxg6 {[%clk 0:00:14.9]} 39. Re7+ {[%clk 0:00:08.2]} 1-0

[Event "*** Titled Tuesday Blitz"]
[Site "Chess.com"]
[Date "2019.01.01"]
[Round "5"]
[White "Zufi1811"]
[Black "sunloong"]
[Result "1-0"]
[WhiteElo "2405"]
[BlackElo "1897"]
[TimeControl "180+2"]
[EndTime "14:10:34 PST"]
[Termination "Zufi1811 won by resignation"]

1. g3 {[%clk 0:03:01.9]} 1... Nf6 {[%clk 0:03:01.9]} 2. Bg2 {[%clk 0:03:02.1]}
2... g6 {[%clk 0:03:03.8]} 3. f4 {[%clk 0:03:03.2]} 3... Bg7 {[%clk 0:03:05.7]}
4. Nf3 {[%clk 0:03:04.2]} 4... d5 {[%clk 0:03:07]} 5. O-O {[%clk 0:03:05.5]}
5... O-O {[%clk 0:03:08.4]} 6. d3 {[%clk 0:03:06.8]} 6... c5 {[%clk 0:03:09.8]}
7. Nc3 {[%clk 0:03:08.2]} 7... Nc6 {[%clk 0:03:10.6]} 8. e4 {[%clk 0:03:09.2]}
8... dxe4 {[%clk 0:02:48.8]} 9. dxe4 {[%clk 0:03:11.1]} 9... Qxd1 {[%clk
0:02:49.6]} 10. Rxd1 {[%clk 0:03:11.8]} 10... Nb4 {[%clk 0:02:50.3]} 11. Rd2
{[%clk 0:03:07.1]} 11... h6 {[%clk 0:02:17.3]} 12. e5 {[%clk 0:03:07.7]} 12...
Nh7 {[%clk 0:01:53.5]} 13. a3 {[%clk 0:02:48.5]} 13... Nc6 {[%clk 0:01:53.6]}
14. Rd1 {[%clk 0:02:19.9]} 14... Bg4 {[%clk 0:01:51.2]} 15. Be3 {[%clk
0:02:18.1]} 15... c4 {[%clk 0:01:29.9]} 16. h3 {[%clk 0:02:15.5]} 16... Bf5
{[%clk 0:01:16.6]} 17. Rd2 {[%clk 0:02:13.9]} 17... h5 {[%clk 0:01:14]} 18. Rad1
{[%clk 0:02:11.4]} 18... Rfd8 {[%clk 0:01:13.5]} 19. Nh4 {[%clk 0:02:05.1]}
19... Rxd2 {[%clk 0:01:00.3]} 20. Rxd2 {[%clk 0:02:07]} 20... Be6 {[%clk
0:00:50.7]} 21. Kh2 {[%clk 0:02:00.2]} 21... Rc8 {[%clk 0:00:51]} 22. Bf3 {[%clk
0:01:57]} 22... g5 {[%clk 0:00:34]} 23. Ng2 {[%clk 0:01:55.3]} 23... h4 {[%clk
0:00:30.6]} 24. Bxc6 {[%clk 0:01:48.5]} 24... hxg3+ {[%clk 0:00:22.9]} 25. Kxg3
{[%clk 0:01:50.4]} 25... bxc6 {[%clk 0:00:14.6]} 26. fxg5 {[%clk 0:01:42.5]}
26... Bxe5+ {[%clk 0:00:14.8]} 27. Bf4 {[%clk 0:01:44.1]} 27... Bxf4+ {[%clk
0:00:14.3]} 28. Kxf4 {[%clk 0:01:44.6]} 28... Kf8 {[%clk 0:00:12.3]} 29. h4
{[%clk 0:01:44.9]} 29... Ke8 {[%clk 0:00:12.5]} 30. Ne3 {[%clk 0:01:44.6]} 30...
Nf8 {[%clk 0:00:12.4]} 31. h5 {[%clk 0:01:45.7]} 31... Rd8 {[%clk 0:00:11.5]}
32. Rxd8+ {[%clk 0:01:45.3]} 32... Kxd8 {[%clk 0:00:13.4]} 33. h6 {[%clk
0:01:42]} 33... Ke8 {[%clk 0:00:13.8]} 34. Ke4 {[%clk 0:01:42.8]} 34... Nh7
{[%clk 0:00:14.4]} 35. Kf4 {[%clk 0:01:43.1]} 35... Kf8 {[%clk 0:00:14.2]} 36.
Ne4 {[%clk 0:01:43.2]} 36... Kg8 {[%clk 0:00:11.9]} 37. c3 {[%clk 0:01:41]}
37... Bd5 {[%clk 0:00:12.5]} 38. Nd2 {[%clk 0:01:40.4]} 38... Be6 {[%clk
0:00:11.8]} 39. Ndxc4 {[%clk 0:01:40.2]} 39... Nf8 {[%clk 0:00:11.4]} 40. Ne5
{[%clk 0:01:40.3]} 40... Ng6+ {[%clk 0:00:12.3]} 41. Nxg6 {[%clk 0:01:40.4]}
41... fxg6 {[%clk 0:00:14.2]} 42. Ke5 {[%clk 0:01:41.2]} 42... Bf7 {[%clk
0:00:13.6]} 43. b4 {[%clk 0:01:37.3]} 43... Bb3 {[%clk 0:00:14.3]} 44. c4 {[%clk
0:01:35.4]} 44... Ba2 {[%clk 0:00:13.6]} 45. c5 {[%clk 0:01:35.6]} 45... Bb1
{[%clk 0:00:14.6]} 46. Nc4 {[%clk 0:01:35.7]} 46... Ba2 {[%clk 0:00:15.1]} 47.
Na5 {[%clk 0:01:33.2]} 47... Bd5 {[%clk 0:00:16.2]} 48. b5 {[%clk 0:01:34]}
48... Bf3 {[%clk 0:00:08.2]} 49. Nxc6 {[%clk 0:01:30.3]} 49... Bg4 {[%clk
0:00:09.3]} 50. Nxe7+ {[%clk 0:01:30.4]} 50... Kf7 {[%clk 0:00:10.6]} 51. Nd5
{[%clk 0:01:29.5]} 51... Be2 {[%clk 0:00:11.6]} 52. a4 {[%clk 0:01:27.4]} 52...
Bc4 {[%clk 0:00:12.8]} 53. c6 {[%clk 0:01:27.5]} 53... Bb3 {[%clk 0:00:14.1]}
54. c7 {[%clk 0:01:28]} 54... Bxa4 {[%clk 0:00:15.3]} 55. c8=Q {[%clk
0:01:26.5]} 55... Bxb5 {[%clk 0:00:16.5]} 56. Qe6+ {[%clk 0:01:24.9]} 1-0

[Event "*** Titled Tuesday Blitz"]
[Site "Chess.com"]
[Date "2019.01.01"]
[Round "5"]
[White "Manukyan_Artak"]
[Black "MFBerna"]
[Result "1-0"]
[WhiteElo "2394"]
[BlackElo "2323"]
[TimeControl "180+2"]
[EndTime "14:10:38 PST"]
[Termination "Manukyan_Artak won on time"]

1. e4 {[%clk 0:03:01.9]} 1... c6 {[%clk 0:03:00.7]} 2. d4 {[%clk 0:03:02.7]}
2... d5 {[%clk 0:03:02.6]} 3. e5 {[%clk 0:03:04.1]} 3... c5 {[%clk 0:03:02.7]}
4. dxc5 {[%clk 0:03:04.9]} 4... Nc6 {[%clk 0:03:03.7]} 5. Bb5 {[%clk 0:03:02.3]}
5... Bd7 {[%clk 0:03:02.3]} 6. Bxc6 {[%clk 0:02:49.8]} 6... Bxc6 {[%clk
0:03:04.2]} 7. Nf3 {[%clk 0:02:50.7]} 7... d4 {[%clk 0:03:00.9]} 8. O-O {[%clk
0:02:37.1]} 8... e6 {[%clk 0:02:49.5]} 9. Nxd4 {[%clk 0:02:28]} 9... Qc7 {[%clk
0:01:55.5]} 10. Nxc6 {[%clk 0:02:15.7]} 10... Qxc6 {[%clk 0:01:57.4]} 11. b4
{[%clk 0:02:09.9]} 11... a5 {[%clk 0:01:55.9]} 12. c3 {[%clk 0:02:07.2]} 12...
Ne7 {[%clk 0:01:52.8]} 13. Qd6 {[%clk 0:01:42]} 13... Qc8 {[%clk 0:01:20.3]} 14.
Qb6 {[%clk 0:01:21]} 14... Nc6 {[%clk 0:00:58.6]} 15. Qb5 {[%clk 0:01:00.5]}
15... Be7 {[%clk 0:00:55.4]} 16. Na3 {[%clk 0:00:58.7]} 16... O-O {[%clk
0:00:54.8]} 17. Nc4 {[%clk 0:00:59.7]} 17... Qc7 {[%clk 0:00:29.9]} 18. Bf4
{[%clk 0:00:56.1]} 18... axb4 {[%clk 0:00:30.1]} 19. cxb4 {[%clk 0:00:56]} 19...
Nd4 {[%clk 0:00:31.1]} 20. Qb6 {[%clk 0:00:56.9]} 20... Qxb6 {[%clk 0:00:31.6]}
21. Nxb6 {[%clk 0:00:57.9]} 21... Ne2+ {[%clk 0:00:31.4]} 22. Kh1 {[%clk
0:00:59.2]} 22... Nxf4 {[%clk 0:00:31.8]} 23. Nxa8 {[%clk 0:01:00.7]} 23... Rxa8
{[%clk 0:00:33.6]} 24. Rfc1 {[%clk 0:00:53.9]} 24... Nd3 {[%clk 0:00:31.6]} 25.
Rc4 {[%clk 0:00:54.3]} 25... Nxe5 {[%clk 0:00:25.6]} 26. Rd4 {[%clk 0:00:54.8]}
26... Nc6 {[%clk 0:00:19.3]} 27. Rd7 {[%clk 0:00:55.5]} 27... Bf6 {[%clk
0:00:19.3]} 28. Rb1 {[%clk 0:00:43.6]} 28... Ra7 {[%clk 0:00:08.2]} 29. b5
{[%clk 0:00:41.5]} 29... Ne5 {[%clk 0:00:07.7]} 30. b6 {[%clk 0:00:31.3]} 30...
Rxa2 {[%clk 0:00:08.3]} 31. Rxb7 {[%clk 0:00:32.3]} 31... h5 {[%clk 0:00:08.5]}
32. Rc7 {[%clk 0:00:26.8]} 32... Ng4 {[%clk 0:00:04.5]} 33. b7 {[%clk
0:00:20.5]} 33... Nxf2+ {[%clk 0:00:05.3]} 34. Kg1 {[%clk 0:00:21.6]} 34... Bd4
{[%clk 0:00:04.8]} 35. b8=Q+ {[%clk 0:00:22.1]} 35... Kh7 {[%clk 0:00:06.4]} 36.
Kf1 {[%clk 0:00:21.7]} 36... Ng4 {[%clk 0:00:04.3]} 37. Rxf7 {[%clk 0:00:22.5]}
37... Nxh2+ {[%clk 0:00:04.7]} 38. Ke1 {[%clk 0:00:23.2]} 38... Bc3+ {[%clk
0:00:05.2]} 39. Kd1 {[%clk 0:00:24]} 39... Ng4 {[%clk 0:00:05.5]} 40. Qf4 {[%clk
0:00:22.8]} 1-0